bitfinex/quotes_ETHUSD_20240716
["timestamp","ask_amount","ask_price","bid_price","bid_amount"]
[1721160787645,2.87532,3477.9,3477.1,2.87594]
[1721160787849,2.87539,3477.8,3477.1,2.87594]
[1721160788448,2.87521,3478.0,3477.1,2.87594]
[1721160788449,2.87521,3478.0,3477.2,0.287594]
[1721160788768,2.87521,3478.0,3477.2,3.163404]
[1721160788909,2.87506,3478.2,3477.3,2.87578]
[1721160789107,2.87506,3478.2,3477.2,0.34510533]
[1721160789410,5.87502,3478.3,3477.5,2.8756]
[1721160789609,2.87522,3478.0,3477.3,2.87578]
[1721160790065,2.87514,3478.1,3477.3,2.87573]
[1721160790401,2.87523,3478.0,3477.2,0.287594]
[1721160790726,2.87523,3478.0,3477.3,2.87579]
[1721160790932,2.87523,3478.0,3477.2,0.287594]
[1721160791137,3.0,3478.3,3476.9,2.87609]
[1721160791138,2.8754,3477.8,3476.9,2.87609]
[1721160791352,2.87527,3478.0,3477.1,2.87589]
[1721160791524,2.87529,3477.9,3477.1,2.87589]
[1721160791723,2.87515,3478.1,3477.2,2.87586]
[1721160791936,2.87489,3478.4,3477.7,2.87544]
[1721160793365,2.87478,3478.6,3477.7,2.87544]
[1721160793666,2.87433,3479.1,3477.7,2.87544]
[1721160793667,2.87432,3479.1,3477.9,2.87528]
[1721160794173,2.87441,3479.0,3477.9,2.87528]
[1721160794355,2.87461,3478.8,3477.9,2.87528]
[1721160794528,2.87461,3478.8,3477.9,2.87525]
[1721160794957,2.8749,3478.4,3477.6,2.87549]
[1721160795175,2.8749,3478.4,3477.4,2.3001]
[1721160795176,2.87507,3478.2,3477.4,2.3001]
[1721160795616,2.87507,3478.2,3477.4,5.1758]
[1721160796161,3.450067,3478.2,3477.3,7.37]
[1721160796313,2.87513,3478.1,3477.3,7.37]
[1721160796513,2.87513,3478.1,3477.3,10.24571]
[1721160796749,2.87513,3478.1,3477.4,2.8757]
[1721160797617,2.87513,3478.1,3477.3,7.37]
[1721160797822,2.87548,3477.7,3476.9,7.37]
[1721160798035,2.87548,3477.7,3476.9,2.87611]
[1721160799381,2.87548,3477.7,3476.8,5.2736]
[1721160799532,2.87572,3477.4,3476.5,7.957652]
[1721160799739,2.87585,3477.3,3476.6,3.0]
[1721160799980,2.87588,3477.2,3476.5,7.37]
[1721160800289,3.451,3477.3,3476.5,7.37]
[1721160800290,3.451,3477.3,3476.6,2.87636]
[1721160800430,5.87521,3478.0,3476.5,7.37]
[1721160800431,2.87576,3477.4,3476.5,7.37]
[1721160800636,2.876,3477.1,3476.5,7.37]
[1721160800932,2.87605,3477.0,3476.5,7.37]
[1721160801129,2.87605,3477.0,3476.4,0.29939139]
[1721160801732,5.37148,3477.6,3476.4,0.29939139]
[1721160801733,2.87635,3476.7,3476.4,0.29939139]
[1721160801938,0.287635,3476.6,3476.4,0.29939139]
[1721160802189,2.87645,3476.5,3476.4,0.29939139]
[1721160804174,5.7529,3476.5,3476.4,0.29939139]
[1721160804388,2.87664,3476.3,3476.1,7.37]
[1721160804677,2.87664,3476.3,3475.6,2.87719]
[1721160804883,2.87664,3476.3,3475.7,1.024719]
[1721160805558,2.87664,3476.3,3475.8,0.29928541]
[1721160805880,2.87629,3476.7,3475.8,3.17630541]
[1721160806040,2.87614,3476.9,3475.8,3.17630541]
[1721160806240,2.87614,3476.9,3476.0,2.8768]
[1721160806440,2.8763,3476.7,3476.0,2.8768]
[1721160806683,2.87614,3476.9,3476.0,2.8768]
[1721160806684,2.87598,3477.1,3476.1,2.87678]
[1721160806907,2.87602,3477.1,3476.2,3.42662]
[1721160807112,2.87604,3477.0,3476.3,3.506956]
[1721160807377,2.87604,3477.0,3476.4,2.87653]
[1721160807818,2.87604,3477.0,3476.3,0.630346]
[1721160808121,2.87587,3477.2,3476.4,2.87652]
[1721160808476,2.87573,3477.4,3476.4,2.87652]
[1721160808679,2.87581,3477.3,3476.5,0.6933466]
[1721160809315,5.37147,3477.6,3476.5,0.6933466]
[1721160809316,2.4959,3477.6,3476.5,0.6933466]
[1721160809536,2.87581,3477.3,3476.3,3.506886]
[1721160809786,2.87581,3477.3,3476.4,2.87647]
[1721160810317,2.87596,3477.1,3476.3,0.630346]
[1721160810471,5.4959,3477.6,3475.8,0.29928541]
[1721160810472,2.87612,3476.9,3476.0,2.87684]
[1721160810680,2.8763,3476.7,3475.8,3.17625541]
[1721160810986,2.87638,3476.6,3475.8,3.17625541]
[1721160811189,2.87638,3476.6,3475.8,4.25445676]
[1721160811786,2.87659,3476.4,3475.8,0.29928541]
[1721160811983,2.87668,3476.3,3475.8,0.29928541]
[1721160812704,2.87645,3476.5,3475.8,3.17631541]
[1721160814075,2.87638,3476.6,3475.8,3.17631541]
[1721160814279,2.87638,3476.6,3475.8,4.51866395]
[1721160814475,2.87652,3476.5,3475.8,1.64163395]
[1721160814730,2.87652,3476.5,3475.8,0.29928541]
[1721160815018,2.87655,3476.4,3475.8,0.29928541]
[1721160815985,2.87668,3476.3,3475.8,0.29928541]
[1721160816633,2.87672,3476.2,3475.8,0.29928541]
[1721160819906,2.87646,3476.5,3475.8,3.17630541]
[1721160820533,2.87653,3476.4,3475.8,3.17630541]
[1721160821114,2.87653,3476.4,3475.8,0.29928541]
[1721160821442,3.54191375,3476.4,3475.8,0.29928541]
[1721160822239,2.87653,3476.4,3475.8,0.29928541]
[1721160822828,2.8767,3476.2,3475.8,0.29928541]
[1721160823284,2.87653,3476.4,3475.8,0.29928541]
[1721160824267,2.87668,3476.3,3475.8,0.29928541]
[1721160825236,2.87653,3476.4,3475.8,0.29928541]
[1721160825237,2.87672,3476.2,3475.8,0.29928541]
[1721160825574,2.87685,3476.1,3475.8,0.29928541]
[1721160826870,2.87687,3476.0,3475.8,0.29928541]
[1721160829369,2.87678,3476.1,3475.8,0.29928541]
[1721160829774,2.87672,3476.2,3475.8,0.29928541]
[1721160830340,2.87679,3476.1,3475.8,0.29928541]
[1721160830977,2.87687,3476.0,3475.8,0.29928541]
[1721160833185,2.87695,3475.9,3475.8,0.29928541]
[1721160834784,2.87695,3475.9,3475.1,7.37]
[1721160834785,2.87712,3475.7,3475.1,7.37]
[1721160834987,2.87712,3475.7,3475.3,0.29897292]
[1721160835192,2.87721,3475.6,3475.3,0.29897292]
[1721160836367,2.87699,3475.9,3475.3,0.29897292]
[1721160837457,2.87704,3475.8,3475.3,0.29897292]
[1721160839766,2.87727,3475.6,3475.3,0.29897292]
[1721160840096,2.87735,3475.5,3475.3,0.29897292]
[1721160840260,2.87736,3475.4,3475.3,0.29897292]
[1721160840461,3.77810746,3475.7,3475.3,0.29897292]
[1721160840677,2.87724,3475.6,3475.3,0.29897292]
[1721160840884,2.87731,3475.5,3475.3,0.29897292]
[1721160842572,2.87736,3475.4,3475.3,0.29897292]
[1721160842773,7.74357509,3475.4,3475.3,0.29897292]
[1721160842974,2.8778,3474.9,3474.2,9.7492]
[1721160843282,5.75565,3474.9,3474.6,0.29904356]
[1721160843599,0.90306046,3474.7,3474.6,0.29904356]
[1721160844363,2.87794,3474.7,3474.6,0.29904356]
[1721160844599,6.57401171,3474.7,3473.9,2.87856]
[1721160844801,0.90285479,3474.6,3474.2,0.29911096]
[1721160845465,2.87827,3474.4,3474.2,0.29911096]
[1721160845666,2.87827,3474.4,3473.8,7.37]
[1721160845972,2.87827,3474.3,3474.2,0.29913046]
[1721160847905,2.87819,3474.4,3474.2,0.29913046]
[1721160848715,2.87827,3474.3,3474.2,0.29913046]
[1721160849306,6.42246448,3474.3,3474.2,0.29913046]
[1721160849508,2.87851,3474.1,3473.8,7.37]
[1721160849704,2.87851,3474.1,3473.4,3.0]
[1721160849909,2.87851,3474.1,3473.2,10.24912]
[1721160849910,2.87851,3474.1,3473.3,5.4347]
[1721160850110,2.87851,3474.1,3473.5,0.29912328]
[1721160850314,2.87868,3473.9,3473.5,0.29912328]
[1721160850489,2.87875,3473.8,3473.5,0.29912328]
[1721160851003,2.87884,3473.7,3473.5,0.29912328]
[1721160851201,0.73255593,3474.1,3473.5,0.29912328]
[1721160851202,5.7577,3473.6,3473.5,0.29912328]
[1721160851422,5.7577,3473.6,3472.3,2.8799]
[1721160851423,2.8791,3473.3,3472.4,7.37]
[1721160851624,2.8791,3473.3,3472.3,2.87992]
[1721160851625,2.87934,3473.1,3472.3,2.87992]
[1721160851801,2.87934,3473.1,3472.5,0.29911428]
[1721160852332,2.87937,3473.0,3472.5,0.29911428]
[1721160852534,2.87934,3473.1,3472.5,0.29911428]
[1721160852535,2.87918,3473.2,3472.5,0.29911428]
[1721160852837,2.87904,3473.4,3472.6,2.87962]
[1721160853000,3.0,3473.7,3472.4,0.35671705]
[1721160853201,0.90285479,3473.9,3472.4,0.29912889]
[1721160853202,2.87949,3472.9,3472.4,0.29912889]
[1721160853416,2.87966,3472.7,3472.4,0.29912889]
[1721160853844,2.87949,3472.9,3472.4,0.29912889]
[1721160854231,2.87962,3472.7,3472.4,0.29912889]
[1721160856213,2.87976,3472.5,3472.4,0.29912889]
[1721160856613,2.87976,3472.5,3471.8,3.0]
[1721160856850,2.87976,3472.5,3472.0,0.29923794]
[1721160858159,2.2772,3473.2,3472.0,0.29923794]
[1721160858357,2.2772,3473.2,3472.0,3.17941794]
[1721160858644,2.8796,3472.7,3472.0,3.17941794]
[1721160859249,2.8798,3472.5,3472.0,0.29923794]
[1721160859452,2.87987,3472.4,3472.0,0.29923794]
[1721160859824,0.515623,3473.1,3472.1,2.88009]
[1721160860024,3.0,3473.6,3472.1,2.88009]
[1721160860025,2.8794,3473.0,3472.1,2.88009]
[1721160860253,2.87949,3472.9,3472.1,2.88009]
[1721160860633,2.87952,3472.8,3472.1,2.88009]
[1721160860858,2.87952,3472.8,3472.0,0.29923794]
[1721160861055,2.87977,3472.5,3472.0,0.29923794]
[1721160862627,2.87994,3472.3,3472.0,0.29923794]
[1721160863345,2.88001,3472.2,3472.0,0.29923794]
[1721160863550,2.8801,3472.1,3472.0,0.29923794]
[1721160864669,2.8801,3472.1,3471.4,3.0]
[1721160864670,2.88024,3472.0,3471.4,3.0]
[1721160864958,2.88024,3472.0,3471.6,0.29926595]
[1721160865529,2.8801,3472.1,3471.6,0.29926595]
[1721160865725,2.88018,3472.0,3471.6,0.29926595]
[1721160866380,2.87996,3472.3,3471.6,0.29926595]
[1721160866546,2.88015,3472.1,3471.6,0.29926595]
[1721160867090,2.88019,3472.0,3471.6,0.29926595]
[1721160872004,2.88002,3472.2,3471.6,0.29926595]
[1721160872216,2.88015,3472.1,3471.6,0.29926595]
[1721160872574,2.88002,3472.2,3471.6,0.29926595]
[1721160872575,2.8802,3472.0,3471.6,0.29926595]
[1721160873518,5.76012,3472.2,3471.6,0.29926595]
[1721160873674,2.88012,3472.1,3471.6,0.29926595]
[1721160874075,2.88019,3472.0,3471.6,0.29926595]
[1721160875209,2.88002,3472.2,3471.6,0.29926595]
[1721160875409,2.88011,3472.1,3471.6,0.29926595]
[1721160876122,2.87994,3472.3,3471.6,0.29926595]
[1721160876286,2.87985,3472.4,3471.7,2.88042]
[1721160876473,2.87994,3472.3,3471.6,0.29926595]
[1721160876805,2.87977,3472.5,3471.6,3.17973595]
[1721160877312,2.87977,3472.5,3471.7,2.88042]
[1721160877512,2.87977,3472.5,3471.9,2.88026]
[1721160877878,2.87943,3472.9,3472.3,2.43]
[1721160878075,2.87913,3473.3,3472.4,2.87978]
[1721160878345,7.35,3474.5,3472.4,2.87978]
[1721160878346,2.87897,3473.5,3472.8,2.3155]
[1721160878621,2.87881,3473.7,3473.1,2.43]
[1721160879233,2.87864,3473.9,3473.1,2.43]
[1721160879434,2.87864,3473.9,3473.2,2.87917]
[1721160880090,2.87847,3474.1,3473.2,3.698014]
[1721160880482,2.87814,3474.5,3473.5,2.43]
[1721160880681,2.87814,3474.5,3473.6,0.55]
[1721160880981,2.4887,3474.9,3473.6,0.55]
[1721160880982,2.4614,3475.3,3473.6,0.55]
[1721160881201,2.87774,3475.0,3474.0,2.87851]
[1721160881581,2.87774,3475.0,3474.1,2.43]
[1721160881776,2.87778,3474.9,3474.1,2.43]
[1721160882116,0.533881,3475.2,3474.3,2.87826]
[1721160882416,2.87769,3475.1,3474.3,2.87826]
[1721160882615,2.87769,3475.1,3474.1,2.43]
[1721160882616,2.87779,3474.9,3474.1,2.43]
[1721160883717,2.87787,3474.8,3474.1,2.43]
[1721160884093,2.87795,3474.7,3474.1,2.43]
[1721160884523,2.87795,3474.7,3473.9,10.2486]
[1721160884524,0.90285479,3475.9,3474.5,2.43]
[1721160884726,2.87733,3475.5,3474.6,3.12101]
[1721160884928,2.87738,3475.4,3474.6,2.87801]
[1721160885229,2.87724,3475.6,3474.7,2.87794]
[1721160885422,2.87713,3475.7,3474.9,2.87774]
[1721160885749,2.87713,3475.7,3475.0,2.2677]
[1721160885961,2.87695,3475.9,3475.0,5.14538]
[1721160886160,3.452484,3475.8,3475.0,5.14538]
[1721160886367,2.87712,3475.7,3475.0,5.14538]
[1721160888553,2.87712,3475.7,3475.0,2.2677]
[1721160890229,0.575374,3475.8,3475.0,2.2677]
[1721160890560,2.87787,3474.8,3474.0,5.36506]
[1721160890776,2.87787,3474.8,3474.1,2.87843]
[1721160891379,2.87787,3474.8,3474.0,2.4866]
[1721160891525,2.87804,3474.6,3474.0,2.4866]
[1721160891733,2.87787,3474.8,3474.0,2.4866]
[1721160891935,2.87787,3474.8,3474.0,5.36512]
[1721160892153,2.87714,3475.7,3474.0,6.956307]
[1721160892379,2.87754,3475.2,3474.3,2.87827]
[1721160892573,2.8774,3475.4,3474.3,5.30827]
[1721160892860,2.87754,3475.2,3474.4,0.55]
[1721160893310,2.87754,3475.2,3474.5,2.87811]
[1721160893594,2.87805,3474.6,3474.0,2.4866]
[1721160895565,2.87793,3474.8,3474.0,2.4866]
[1721160895877,2.87771,3475.0,3474.2,2.87832]
[1721160896062,2.87745,3475.3,3474.3,2.87825]
[1721160896264,2.87753,3475.2,3474.5,2.8781]
[1721160896665,2.87728,3475.5,3474.5,2.8781]
[1721160897006,2.87753,3475.2,3474.5,2.8781]
[1721160897172,2.87762,3475.1,3474.4,3.42818]
[1721160898314,2.87762,3475.1,3474.4,0.55]
[1721160898512,2.8777,3475.0,3474.4,0.55]
[1721160899209,2.87745,3475.3,3474.4,3.42817]
[1721160899210,2.87759,3475.2,3474.4,3.42817]
[1721160899408,2.87761,3475.1,3474.4,3.42817]
[1721160899908,2.87754,3475.2,3474.4,4.301812]
[1721160900400,2.87736,3475.4,3474.5,2.87809]
[1721160900564,2.3835,3476.2,3474.7,2.87793]
[1721160900565,2.87706,3475.8,3474.7,2.87793]
[1721160900765,2.87723,3475.6,3474.8,3.42786]
[1721160901013,2.87723,3475.6,3474.8,4.539947]
[1721160901164,2.87783,3474.9,3474.5,2.385]
[1721160901486,2.87797,3474.7,3474.1,2.385]
[1721160902190,2.87803,3474.6,3474.1,2.385]
[1721160903293,2.87814,3474.5,3474.1,2.385]
[1721160903804,2.87789,3474.8,3473.5,2.73809506]
[1721160903805,2.87845,3474.1,3473.5,2.73809506]
[1721160905102,2.87855,3474.0,3473.5,2.73809506]
[1721160905274,0.287814,3474.4,3473.5,0.29869506]
[1721160905275,2.87885,3473.6,3473.5,0.29869506]
[1721160905477,2.87897,3473.5,3472.8,9.7321]
[1721160905695,2.87911,3473.3,3472.8,2.3621]
[1721160905903,2.87897,3473.5,3472.9,0.29871023]
[1721160906197,2.87909,3473.4,3472.9,0.29871023]
[1721160906699,2.87911,3473.3,3472.9,0.29871023]
[1721160908310,2.87935,3473.0,3472.9,0.29871023]
[1721160908720,2.87935,3473.0,3472.4,7.37]
[1721160909041,2.87935,3473.0,3472.6,0.29857705]
[1721160909247,2.87907,3473.4,3472.6,3.17825705]
[1721160909414,2.87895,3473.5,3472.6,3.17825705]
[1721160909415,2.87916,3473.3,3472.6,0.29857705]
[1721160909739,2.87935,3473.0,3472.6,0.29857705]
[1721160910101,2.87911,3473.3,3472.6,0.29857705]
[1721160910428,2.87902,3473.4,3472.6,3.17823705]
[1721160910639,2.87911,3473.3,3472.6,3.17823705]
[1721160913105,2.389,3474.0,3472.6,3.17823705]
[1721160913106,2.87883,3473.7,3472.8,2.87949]
[1721160913297,2.87859,3474.0,3473.3,2.87909]
[1721160914119,2.87866,3473.9,3473.1,2.8792]
[1721160914427,2.87866,3473.9,3473.2,0.55]
[1721160914628,2.87866,3473.9,3473.2,3.42918]
[1721160915229,2.87848,3474.1,3473.3,2.8791]
[1721160915429,2.87838,3474.2,3473.4,0.630828]
[1721160916332,2.87838,3474.2,3473.4,3.509848]
[1721160916836,2.87844,3474.1,3473.4,3.509848]
[1721160917014,2.87854,3474.0,3473.4,0.630828]
[1721160918543,2.87854,3474.0,3473.2,0.55]
[1721160918757,2.87865,3473.9,3473.2,0.55]
[1721160918951,2.87865,3473.9,3473.1,3.4292]
[1721160919645,5.75695,3474.1,3473.3,2.87905]
[1721160919847,2.87852,3474.0,3473.4,0.630825]
[1721160922970,2.87862,3473.9,3473.4,0.630825]
[1721160923171,2.87862,3473.9,3473.1,0.55]
[1721160923476,2.87915,3473.3,3472.6,2.4073]
[1721160923679,2.87919,3473.2,3472.8,0.2986576]
[1721160924192,2.87915,3473.3,3472.8,0.2986576]
[1721160924478,2.87921,3473.2,3472.8,0.2986576]
[1721160924639,2.87897,3473.5,3472.8,0.2986576]
[1721160924845,2.87908,3473.4,3472.8,0.2986576]
[1721160925078,2.87902,3473.4,3472.8,0.2986576]
[1721160925396,2.87895,3473.5,3472.8,0.2986576]
[1721160925557,2.87872,3473.8,3472.9,3.42937]
[1721160925874,2.87872,3473.8,3473.0,2.87927]
[1721160926444,2.87864,3473.9,3473.2,2.87916]
[1721160927175,0.90285479,3474.1,3472.9,0.55]
[1721160927176,0.90285479,3474.1,3473.4,2.87902]
[1721160927390,2.87845,3474.1,3473.5,2.87892]
[1721160927586,2.87845,3474.1,3473.5,3.946384]
[1721160928891,2.87824,3474.4,3473.7,2.87877]
[1721160929092,2.87797,3474.7,3473.7,2.87877]
[1721160929293,2.87797,3474.7,3474.0,2.43]
[1721160929466,0.90285479,3475.0,3474.1,5.28844]
[1721160929668,2.87763,3475.1,3474.2,2.87828]
[1721160930059,2.87763,3475.1,3474.3,2.87826]
[1721160930389,3.78032479,3475.3,3474.4,2.87818]
[1721160930578,2.87753,3475.2,3474.4,2.87818]
[1721160931090,2.87767,3475.1,3474.4,2.87818]
[1721160931300,0.90285479,3475.3,3474.7,2.87794]
[1721160931493,3.78024479,3475.4,3474.7,2.87794]
[1721160931866,2.87739,3475.4,3474.7,2.87794]
[1721160932064,2.87739,3475.4,3474.4,2.87818]
[1721160932065,1.68900933,3475.3,3474.5,2.87805]
[1721160932264,1.68900933,3475.3,3474.4,2.87818]
[1721160932265,1.68900933,3475.3,3474.6,2.87802]
[1721160932606,1.68900933,3475.3,3474.1,2.41]
[1721160932808,2.87809,3474.6,3473.7,7.37]
[1721160932965,3.78075479,3474.8,3473.8,2.87868]
[1721160933158,2.87795,3474.7,3473.9,2.87854]
[1721160933369,0.90285479,3474.7,3473.9,2.87854]
[1721160933594,2.87803,3474.6,3473.9,2.87854]
[1721160933794,3.78072479,3474.8,3473.9,2.87854]
[1721160933975,2.87796,3474.7,3473.9,2.87854]
[1721160934903,2.87809,3474.6,3473.7,10.24871]
[1721160935082,3.78094479,3474.6,3473.7,10.24871]
[1721160935416,0.90285479,3474.7,3473.9,2.8786]
[1721160935576,0.90285479,3474.7,3474.0,0.55]
[1721160936168,0.90285479,3474.7,3474.1,2.87843]
[1721160936490,0.90285479,3474.8,3474.1,2.87843]
[1721160936919,0.90285479,3475.0,3474.2,3.42827]
[1721160937066,0.90285479,3475.1,3474.5,2.8781]
[1721160937261,0.90285479,3475.2,3474.5,2.8781]
[1721160937463,2.87747,3475.3,3474.5,2.8781]
[1721160937464,0.90285479,3475.1,3474.5,2.8781]
[1721160937929,0.90285479,3475.2,3474.5,2.8781]
[1721160938429,1.4964374,3475.6,3474.5,2.8781]
[1721160938430,0.90285479,3475.7,3475.5,5.19228]
[1721160938565,0.90285479,3476.2,3475.6,2.43]
[1721160938766,0.90285479,3476.2,3475.7,2.87711]
[1721160939022,0.90285479,3476.3,3475.7,2.87711]
[1721160939333,3.77927479,3476.6,3475.7,2.87711]
[1721160939811,1.83844807,3476.6,3475.7,2.87711]
[1721160939962,0.90285479,3476.6,3476.3,2.87659]
[1721160940166,0.90285479,3476.6,3476.2,2.43]
[1721160940167,0.90285479,3476.7,3476.4,2.87652]
[1721160940362,2.87602,3477.1,3476.4,2.87652]
[1721160940363,0.90285479,3477.1,3476.4,2.87652]
[1721160940662,0.90285479,3477.2,3476.4,2.87652]
[1721160941302,2.87597,3477.1,3476.4,2.87652]
[1721160941511,3.54143248,3477.1,3476.4,2.87652]
[1721160941666,0.66546248,3477.1,3476.4,2.87652]
[1721160942186,3.54142248,3477.1,3476.2,2.87666]
[1721160942493,2.87631,3476.7,3475.9,7.37]
[1721160942676,0.287631,3476.6,3475.9,10.24695]
[1721160942883,2.87669,3476.3,3475.9,7.37]
[1721160943064,2.87662,3476.4,3475.9,7.37]
[1721160943406,2.87662,3476.3,3475.9,7.37]
[1721160943613,2.87671,3476.2,3475.9,7.37]
[1721160944217,0.6040631,3476.3,3475.9,7.37]
[1721160944380,2.87655,3476.4,3475.9,7.37]
[1721160944707,2.87673,3476.2,3475.9,7.37]
[1721160944931,2.87654,3476.4,3475.5,5.561]
[1721160945207,2.87654,3476.4,3475.0,3.246]
[1721160945208,2.87714,3475.7,3475.0,3.246]
[1721160945420,2.87714,3475.7,3474.9,2.87772]
[1721160945421,3.452563,3475.7,3474.9,2.87772]
[1721160945572,2.87714,3475.7,3474.9,2.87772]
[1721160946225,2.87728,3475.5,3474.8,2.4363]
[1721160946570,2.87738,3475.4,3474.8,2.4363]
[1721160946776,2.8772,3475.6,3474.8,2.4363]
[1721160946993,2.87688,3476.0,3474.9,2.87771]
[1721160947371,2.87688,3476.0,3475.0,0.55]
[1721160948097,2.87679,3476.1,3475.3,2.87737]
[1721160948621,2.87679,3476.1,3475.4,2.87735]
[1721160949071,2.87679,3476.1,3475.3,2.87738]
[1721160949272,0.575341,3476.0,3475.3,2.87738]
[1721160949572,3.452211,3476.0,3475.3,2.3828]
[1721160949769,3.452211,3476.0,3475.3,5.26019]
[1721160950194,3.452211,3476.0,3475.3,2.3828]
[1721160950572,2.87713,3475.7,3475.0,3.246]
[1721160951304,2.8772,3475.6,3474.9,2.4845]
[1721160951799,2.8772,3475.6,3474.9,5.36222]
[1721160952178,3.452231,3476.0,3475.0,2.87768]
[1721160952380,2.87692,3476.0,3475.1,2.8776]
[1721160952699,2.87709,3475.8,3475.1,2.8776]
[1721160953305,2.87712,3475.7,3475.0,3.246]
[1721160954305,1.19048579,3476.6,3475.0,6.12364]
[1721160954306,2.877,3475.9,3475.0,6.12364]
[1721160955204,2.877,3475.9,3475.1,2.8776]
[1721160955407,2.87694,3476.0,3475.1,2.8776]
[1721160955579,2.87702,3475.9,3475.1,2.8776]
[1721160956171,2.87694,3476.0,3475.3,2.87739]
[1721160956408,2.8767,3476.3,3475.4,2.87736]
[1721160956409,2.87668,3476.3,3475.4,2.87736]
[1721160956568,2.8767,3476.2,3475.4,2.87736]
[1721160957187,2.8768,3476.1,3475.4,2.87736]
[1721160957369,0.287631,3476.6,3475.4,2.87736]
[1721160957370,2.8767,3476.2,3475.4,2.87736]
[1721160957577,2.87654,3476.4,3475.7,2.8771]
[1721160957784,5.87654,3476.4,3475.7,5.3325]
[1721160959111,2.87665,3476.3,3475.7,2.4554]
[1721160959281,3.7807261,3476.3,3475.7,2.4554]
[1721160960678,0.9040761,3476.3,3475.7,5.3325]
[1721160961012,2.87637,3476.6,3475.8,2.87703]
[1721160961207,2.87632,3476.7,3475.9,2.87694]
[1721160961620,5.75269,3476.7,3476.0,2.87683]
[1721160961776,2.87632,3476.7,3476.0,2.87683]
[1721160962528,2.87639,3476.6,3475.8,2.87696]
[1721160962676,2.87639,3476.6,3475.9,0.55]
[1721160962880,2.87639,3476.6,3475.9,3.42692]
[1721160963322,2.87591,3477.2,3476.0,2.87685]
[1721160963323,2.87616,3476.9,3476.0,2.87685]
[1721160963484,2.87634,3476.7,3476.0,2.87685]
[1721160963683,2.87638,3476.6,3475.9,0.55]
[1721160963912,2.87638,3476.6,3475.9,3.42689]
[1721160964417,2.87591,3477.2,3475.9,3.42689]
[1721160964418,2.87613,3476.9,3476.2,2.87662]
[1721160964713,2.87613,3476.9,3476.3,0.55]
[1721160965717,3.451354,3476.9,3476.2,0.55]
[1721160966387,2.87622,3476.8,3476.2,0.55]
[1721160966717,2.87622,3476.8,3476.1,3.42678]
[1721160967011,2.87622,3476.8,3476.2,2.8767]
[1721160967216,2.87622,3476.8,3476.3,0.55]
[1721160967823,0.6327554,3476.8,3475.7,5.7014]
[1721160968030,2.87662,3476.3,3475.7,5.7014]
[1721160968443,2.87704,3475.8,3475.3,7.37]
[1721160968594,2.87686,3476.1,3475.2,2.87752]
[1721160969103,2.877,3475.9,3475.2,2.87752]
[1721160969701,2.877,3475.9,3475.3,0.55]
[1721160970044,2.87705,3475.8,3475.3,0.55]
[1721160970248,2.87705,3475.8,3475.1,2.4334]
[1721160970249,2.87705,3475.8,3475.2,3.55]
[1721160971818,0.90285479,3476.6,3475.2,3.55]
[1721160971819,2.87692,3476.0,3475.2,3.55]
[1721160972132,2.87658,3476.4,3475.2,7.71193742]
[1721160972348,2.87666,3476.3,3475.6,2.87714]
[1721160972569,2.87666,3476.3,3475.7,3.42711]
[1721160973231,2.87666,3476.3,3475.7,0.55]
[1721160973426,2.87666,3476.3,3475.6,0.55]
[1721160973749,2.87671,3476.2,3475.6,0.55]
[1721160973948,2.87671,3476.2,3475.6,3.42718]
[1721160974250,2.87671,3476.2,3475.3,2.87741]
[1721160974452,2.87671,3476.2,3475.4,0.55]
[1721160974838,2.87679,3476.1,3475.4,0.55]
[1721160975217,2.87679,3476.1,3475.4,3.42735]
[1721160975639,2.87656,3476.4,3475.7,2.87711]
[1721160975854,2.87656,3476.4,3475.8,0.55]
[1721160975855,2.87662,3476.3,3475.8,0.55]
[1721160977354,2.87684,3476.1,3475.2,10.03939742]
[1721160977523,2.87684,3476.1,3475.3,2.87744]
[1721160977719,2.87684,3476.1,3475.4,3.42731]
[1721160978351,5.7537,3476.1,3475.4,0.55]
[1721160978530,5.7537,3476.1,3475.3,0.55]
[1721160978745,5.7537,3476.1,3475.3,3.42742]
[1721160978947,2.87684,3476.1,3475.3,3.42742]
[1721160979827,2.87696,3475.9,3475.3,0.55]
[1721160982158,3.77981479,3475.9,3475.3,0.55]
[1721160982568,2.8771,3475.8,3475.3,0.55]
[1721160982864,2.87712,3475.7,3475.3,0.55]
[1721160983272,3.77997479,3475.7,3475.3,0.55]
[1721160983770,2.87712,3475.7,3475.3,0.55]
[1721160983967,0.90285479,3475.8,3475.3,0.55]
[1721160984169,0.90285479,3475.8,3475.3,1.79054442]
[1721160984389,0.90285479,3475.9,3475.4,5.31231]
[1721160984671,0.90285479,3475.9,3475.5,0.55]
[1721160985682,0.90285479,3475.9,3475.8,5.31203]
[1721160985898,1.20408061,3476.1,3475.9,2.87695]
[1721160985899,0.90285479,3476.1,3475.9,2.87695]
[1721160986177,0.90285479,3476.1,3476.0,3.42686]
[1721160986380,0.90285479,3476.3,3476.1,2.87678]
[1721160986582,0.90285479,3476.3,3476.2,2.985]
[1721160987414,0.90285479,3476.3,3476.2,5.8617]
[1721160987697,0.90285479,3476.5,3476.3,2.87662]
[1721160987893,0.90285479,3476.5,3476.4,3.42653]
[1721160988105,0.90285479,3476.7,3476.5,2.87645]
[1721160988409,1.20408061,3476.8,3476.6,0.55]
[1721160988859,1.20408061,3476.8,3476.5,0.55]
[1721160989058,0.89936701,3476.6,3476.5,0.55]
[1721160989291,0.89936701,3476.7,3476.5,0.55]
[1721160990365,0.89936701,3476.6,3476.5,0.55]
[1721160991095,0.89936701,3476.7,3476.5,3.42645]